bitfinex-derivatives/quotes_SOLF0:USTF0_20240926
["timestamp","ask_amount","ask_price","bid_price","bid_amount"]
[1727366523029,3.1813,157.15,157.07,24.45]
[1727366523239,2.6885,157.18,157.07,24.45]
[1727366523537,2.6885,157.18,157.08,2.5048]
[1727366524134,2.6885,157.18,157.08,5.1949]
[1727366524535,3.1817,157.13,157.09,3.1822]
[1727366524732,2.6885,157.18,157.09,3.1822]
[1727366524936,2.6885,157.18,157.08,5.1949]
[1727366525235,2.6885,157.18,157.08,2.6901]
[1727366525236,3.1821,157.11,157.08,2.6901]
[1727366525436,24.45,157.16,157.08,2.6901]
[1727366525738,3.1819,157.12,157.08,5.8725]
[1727366526140,2.6885,157.18,157.1,3.1821]
[1727366526438,2.6885,157.18,157.08,2.6901]
[1727366526837,3.1817,157.13,157.09,3.1822]
[1727366527137,2.6885,157.18,157.08,2.6901]
[1727366527334,3.1819,157.12,157.08,5.8726]
[1727366528034,3.182,157.11,157.08,5.8726]
[1727366528240,24.45,157.1,156.98,76.36]
[1727366528435,24.45,157.1,156.99,4.9751]
[1727366528742,24.45,157.1,157.01,3.1839]
[1727366529136,24.45,157.1,157.01,3.184]
[1727366529338,24.45,157.1,156.99,4.9751]
[1727366529941,3.1833,157.05,157.01,3.1839]
[1727366530140,24.45,157.07,156.99,2.4891]
[1727366530342,24.45,157.07,156.98,3.10968938]
[1727366530545,24.45,157.07,156.96,5.2053]
[1727366531134,24.45,157.07,156.96,8.440434]
[1727366532042,3.1835,157.04,156.96,8.440434]
[1727366532548,5.3143,157.09,156.97,24.45]
[1727366533545,24.45,157.12,156.99,24.45]
[1727366533748,24.45,157.12,157.02,24.45]
[1727366533936,3.1822,157.1,157.03,5.3448]
[1727366534136,24.45,157.15,157.03,5.3448]
[1727366534342,24.45,157.15,157.03,7.8478]
[1727366534745,24.45,157.15,157.04,24.45]
[1727366534941,24.45,157.15,157.04,27.67805666]
[1727366535143,3.1819,157.12,157.09,3.1824]
[1727366535543,24.45,157.15,157.09,3.1824]
[1727366535744,3.1817,157.13,157.09,3.1824]
[1727366535944,24.45,157.15,157.07,3.1826]
[1727366536140,24.45,157.08,156.96,3.235134]
[1727366536439,24.45,157.05,156.97,5.1053]
[1727366536941,3.1838,157.03,156.98,3.16853718]
[1727366537138,24.45,157.05,156.97,5.1053]
[1727366537650,24.45,157.05,156.98,3.1846]
[1727366537846,3.1839,157.02,156.98,3.1846]
[1727366538044,24.45,157.02,156.92,2.503]
[1727366538250,24.45,157.02,156.93,2.5372]
[1727366538547,24.45,157.02,156.93,5.77741053]
[1727366538744,24.45,157.02,156.93,2.5372]
[1727366539343,24.45,157.02,156.94,6.2979128]
[1727366539850,3.1845,156.99,156.94,6.2979128]
[1727366540051,24.45,157.02,156.94,6.2979128]
[1727366540354,24.45,157.02,156.95,3.1852]
[1727366540644,24.45,157.02,156.94,3.1125128]
[1727366540849,24.45,157.02,156.93,2.5372]
[1727366540850,24.45,157.02,156.93,3.1856]
[1727366541353,3.1849,156.97,156.93,6.40252273]
[1727366541550,24.45,157.02,156.93,3.21692273]
[1727366541753,3.1846,156.99,156.92,2.503]
[1727366541949,24.45,157.02,156.94,3.1853]
[1727366542159,24.45,157.02,156.94,6.35889288]
[1727366542451,24.45,157.05,156.94,3.17359288]
[1727366542646,24.45,157.05,156.9,5.117]
[1727366542852,3.1846,156.99,156.91,2.6445]
[1727366543153,24.45,157.02,156.91,2.6445]
[1727366543546,3.1847,156.98,156.94,3.1853]
[1727366543741,24.45,157.02,156.91,2.6445]
[1727366544144,24.45,157.02,156.94,3.1854]
[1727366545247,3.1848,156.98,156.94,3.1854]
[1727366545444,24.45,157.0,156.9,3.11656315]
[1727366545647,24.45,157.0,156.87,24.45]
[1727366545850,2.6718,156.99,156.87,24.45]
[1727366546559,3.1851,156.96,156.92,3.1858]
[1727366547555,2.6718,156.99,156.91,3.24942011]
[1727366547756,2.6718,156.99,156.87,24.45]
[1727366548059,3.1851,156.96,156.92,3.1858]
[1727366549457,3.1852,156.95,156.91,6.39558537]
[1727366550360,24.45,156.97,156.85,7.8062]
[1727366550558,24.45,156.95,156.85,7.8062]
[1727366551257,24.45,156.93,156.83,76.42]
[1727366551458,24.45,156.93,156.82,8.178288]
[1727366551759,24.45,156.93,156.82,5.0489]
[1727366552462,5.0119,156.98,156.82,5.0489]
[1727366552660,24.45,156.96,156.82,5.0489]
[1727366552866,3.1857,156.93,156.82,5.0489]
[1727366553261,24.45,156.96,156.82,5.0489]
[1727366554256,3.1856,156.93,156.82,5.0489]
[1727366554458,29.4619,156.98,156.84,24.45]
[1727366554656,29.4619,156.98,156.86,24.45]
[1727366555163,3.1851,156.96,156.86,24.45]
[1727366555366,29.4619,156.98,156.86,24.45]
[1727366555759,5.0119,156.98,156.84,24.45]
[1727366555961,24.45,156.97,156.84,24.45]
[1727366556162,3.1851,156.96,156.92,3.1857]
[1727366556367,24.45,156.97,156.91,3.17990705]
[1727366556662,24.45,156.97,156.84,24.45]
[1727366556862,3.1851,156.96,156.92,3.1858]
[1727366557172,3.1851,156.96,156.84,24.45]
[1727366557173,24.45,156.97,156.9,3.21560053]
[1727366557361,24.45,156.97,156.84,24.45]
[1727366558258,3.1852,156.95,156.84,24.45]
[1727366558866,3.1852,156.95,156.91,3.1858]
[1727366559169,5.0119,156.98,156.9,3.20032863]
[1727366559363,5.0119,156.98,156.86,24.45]
[1727366559569,24.45,156.97,156.84,24.45]
[1727366559763,5.0119,156.98,156.82,29.4989]
[1727366559764,3.186,156.92,156.82,29.4989]
[1727366560064,24.45,156.95,156.82,29.4989]
[1727366560364,3.1861,156.91,156.82,29.4989]
[1727366560566,3.1861,156.91,156.87,3.1867]
[1727366561067,3.1861,156.91,156.88,3.1866]
[1727366561263,3.1855,156.94,156.82,29.4989]
[1727366561565,24.45,156.95,156.88,3.1865]
[1727366561771,3.186,156.92,156.88,3.1865]
[1727366561963,24.45,156.95,156.82,29.4989]
[1727366562472,3.1866,156.89,156.82,5.0489]
[1727366562973,3.1861,156.91,156.87,3.1867]
[1727366563158,24.45,156.92,156.82,5.0489]
[1727366563360,24.45,156.94,156.82,5.0489]
[1727366563561,3.1859,156.92,156.82,5.0489]
[1727366563759,24.45,156.94,156.82,5.0489]
[1727366563958,5.0119,156.98,156.82,5.0489]
[1727366564170,24.45,156.94,156.82,29.4989]
[1727366564372,5.0119,156.98,156.87,3.1868]
[1727366564563,24.45,156.95,156.82,29.4989]
[1727366564958,24.45,156.95,156.86,3.1869]
[1727366565170,24.45,156.95,156.82,29.4989]
[1727366565371,24.45,156.95,156.87,3.1867]
[1727366565668,3.1859,156.92,156.82,29.4989]
[1727366565863,3.1859,156.92,156.87,3.1866]
[1727366566065,3.1859,156.92,156.82,5.0489]
[1727366566261,3.1859,156.92,156.84,15.29]
[1727366566570,3.1859,156.92,156.88,3.1866]
[1727366566772,15.29,156.94,156.84,15.29]
[1727366566965,15.29,156.96,156.86,15.29]
[1727366567166,5.0119,156.98,156.9,15.29]
[1727366567369,2.6718,156.99,156.92,15.29]
[1727366567862,2.6718,156.99,156.92,18.41659959]
[1727366568168,15.29,157.02,156.92,18.41659959]
[1727366568365,3.1841,157.01,156.96,3.1848]
[1727366568569,3.1841,157.01,156.92,27.59659959]
[1727366568763,5.0944,157.03,156.92,27.59659959]
[1727366568965,5.0944,157.03,156.92,3.12659959]
[1727366569170,5.0944,157.03,156.92,24.47]
[1727366569461,3.1843,157.0,156.95,3.1851]
[1727366569959,3.1844,157.0,156.95,3.1851]
[1727366570163,5.0944,157.03,156.92,27.72534755]
[1727366570360,5.0944,157.03,156.94,24.47]
[1727366570562,3.1842,157.01,156.94,24.47]
[1727366570972,2.68512587,157.01,156.94,24.47]
[1727366571170,2.68512587,157.01,156.94,27.70084344]
[1727366571768,2.68512587,157.01,156.96,3.1849]
[1727366572370,2.68512587,157.01,156.94,27.70084344]
[1727366572371,3.1842,157.0,156.95,3.1851]
[1727366572568,5.0944,157.03,156.95,3.1851]
[1727366572764,5.0944,157.03,156.94,3.23084344]
[1727366572965,3.1846,156.98,156.94,3.1852]
[1727366573170,3.1846,156.98,156.95,3.19962756]
[1727366574375,24.47,157.02,156.89,29.6148]
[1727366574580,24.47,157.0,156.89,8.37161548]
[1727366574773,2.4615,156.99,156.89,8.37161548]
[1727366575276,24.47,156.97,156.85,24.47]
[1727366575578,24.47,156.97,156.88,6.3578949]
[1727366575979,24.47,156.97,156.88,3.1865]
[1727366576378,24.47,156.97,156.88,6.3368733]
[1727366576878,24.47,156.97,156.85,24.47]
[1727366577272,4.9728,156.96,156.85,24.47]
[1727366577979,3.1858,156.93,156.88,3.1865]
[1727366578267,4.9728,156.96,156.88,3.11672737]
[1727366578465,4.9728,156.96,156.91,3.186]
[1727366578668,4.9728,156.96,156.89,3.19830207]
[1727366578877,4.9728,156.96,156.87,24.47]
[1727366579076,3.1857,156.93,156.89,3.1863]
[1727366579272,3.1857,156.93,156.89,6.42698268]
[1727366579673,4.9728,156.96,156.89,3.24068268]
[1727366579975,4.9728,156.96,156.87,24.47]
[1727366580176,3.1856,156.94,156.87,24.47]
[1727366580572,4.9728,156.96,156.87,24.47]
[1727366580766,2.4615,156.99,156.87,24.47]
[1727366580971,2.4615,156.99,156.88,5.0277]
[1727366581175,2.4615,156.99,156.88,8.25117925]
[1727366581670,2.4615,156.99,156.9,24.47]
[1727366582576,3.1847,156.98,156.94,3.1853]
[1727366583276,2.4615,156.99,156.9,24.47]
[1727366583473,4.9636,157.02,156.92,24.47]
[1727366583977,24.47,157.0,156.88,10.85037925]
[1727366584178,2.449,156.99,156.88,10.85037925]
[1727366584772,24.47,156.98,156.88,2.6001]
[1727366584970,24.47,156.95,156.84,76.46]
[1727366585176,24.47,156.95,156.83,24.47]
[1727366585381,2.6549,156.94,156.83,24.47]
[1727366585578,3.1861,156.91,156.87,3.1867]
[1727366585873,2.6549,156.94,156.83,24.47]
[1727366586280,3.1861,156.91,156.86,3.187]
[1727366586484,3.1861,156.91,156.83,24.47]
[1727366586677,2.6549,156.94,156.83,24.47]
[1727366586878,3.186,156.91,156.86,3.1869]
[1727366587081,3.186,156.91,156.83,24.47]
[1727366587482,3.186,156.91,156.87,3.1868]
[1727366588288,3.1863,156.9,156.85,3.1871]
[1727366588689,2.6549,156.94,156.83,24.47]
[1727366588888,3.1859,156.92,156.83,24.47]
[1727366589082,2.6549,156.94,156.83,24.47]
[1727366590089,3.1861,156.91,156.86,3.1868]
[1727366590389,3.1861,156.91,156.83,24.47]
[1727366590782,3.1862,156.9,156.86,3.1869]
[1727366591288,2.6549,156.94,156.81,32.0956]
[1727366591486,24.47,156.92,156.81,32.0956]
[1727366591687,2.632,156.91,156.81,32.0956]
[1727366592386,3.1868,156.88,156.81,32.0956]
[1727366592786,2.632,156.91,156.81,32.0956]
[1727366593184,24.47,156.9,156.81,4.9952]
[1727366593389,24.47,156.9,156.78,27.71310284]
[1727366593592,3.1876,156.84,156.8,3.1882]
[1727366594393,3.1876,156.84,156.78,3.24310284]
[1727366594394,24.48,156.9,156.78,3.24310284]
[1727366594593,24.48,156.9,156.77,24.48]
[1727366594891,24.48,156.9,156.79,3.1883]
[1727366595094,24.48,156.87,156.79,3.1883]
[1727366595487,24.48,156.87,156.78,3.1886]
[1727366595693,5.1487,156.86,156.78,3.1886]
[1727366596089,5.1487,156.86,156.76,2.6367]
[1727366596090,3.1883,156.8,156.77,3.1888]
[1727366596589,24.48,156.82,156.74,3.22924494]
[1727366596991,24.48,156.82,156.71,5.0875]
[1727366597193,3.1886,156.79,156.75,3.1891]
[1727366597595,3.1888,156.78,156.73,6.33519975]
[1727366597793,24.48,156.82,156.73,3.1895]
[1727366597999,2.6754,156.84,156.71,2.5433]
[1727366598000,24.48,156.8,156.71,2.5433]
[1727366598191,24.48,156.8,156.69,2.6073]
[1727366598495,2.6034,156.79,156.69,27.0873]
[1727366598795,24.48,156.83,156.71,24.48]
[1727366598986,3.1885,156.79,156.71,27.66938559]
[1727366599389,3.1882,156.81,156.76,3.189]
[1727366599593,24.48,156.83,156.76,3.189]
[1727366599795,24.48,156.83,156.72,2.4223]
[1727366600397,3.1883,156.8,156.76,3.189]
[1727366600696,3.1883,156.8,156.72,2.4223]
[1727366600893,24.48,156.83,156.72,26.9023]
[1727366601198,2.6754,156.84,156.74,24.48]
[1727366601600,5.8629,156.84,156.74,24.48]
[1727366602100,5.8629,156.84,156.79,3.1884]
[1727366602101,3.1878,156.83,156.79,3.1884]
[1727366602399,2.6754,156.84,156.74,24.48]
[1727366602597,2.6034,156.85,156.74,24.48]
[1727366602598,3.1874,156.85,156.74,24.48]
[1727366602900,3.1874,156.85,156.76,24.48]
[1727366603203,3.1874,156.85,156.8,3.1881]
[1727366603497,2.485,156.86,156.76,24.48]
[1727366603797,2.6093,156.88,156.8,3.1881]
[1727366604192,3.1874,156.85,156.8,3.1881]
[1727366604391,2.6093,156.88,156.8,3.11061574]
[1727366604589,2.6093,156.88,156.77,2.4582]
[1727366604792,3.1871,156.86,156.81,3.1879]
[1727366605194,2.6093,156.88,156.81,3.1879]
[1727366605399,3.1874,156.85,156.81,3.1879]
[1727366605904,2.6093,156.88,156.77,2.4582]
[1727366606299,2.6093,156.88,156.8,3.1882]
[1727366606497,3.1876,156.84,156.8,3.1882]
[1727366606699,3.1876,156.84,156.79,3.23500809]
[1727366606897,2.6093,156.88,156.81,3.1879]
[1727366607101,2.6093,156.88,156.79,3.20471776]
[1727366607302,2.6093,156.88,156.77,2.4582]
[1727366607893,2.6093,156.88,156.81,3.188]
[1727366608105,3.1875,156.84,156.81,3.188]
[1727366608404,3.1875,156.84,156.79,3.22863118]
[1727366608605,3.1875,156.84,156.8,3.1882]
[1727366609506,2.6093,156.88,156.79,3.25796498]
[1727366609701,2.6093,156.88,156.77,2.4582]
[1727366609910,3.1872,156.86,156.8,3.1882]
[1727366610100,2.6093,156.88,156.8,3.21703906]
[1727366610306,2.6093,156.88,156.77,2.4582]
[1727366610502,2.6093,156.88,156.83,3.1876]
[1727366610902,2.6093,156.88,156.8,3.19663164]
[1727366611101,3.187,156.87,156.83,3.1875]
[1727366611303,2.6093,156.88,156.83,3.1875]
[1727366611499,2.6093,156.88,156.82,3.1877]
[1727366611703,2.6093,156.88,156.8,3.11850947]
[1727366611903,2.6093,156.88,156.77,2.4582]
[1727366612411,2.6093,156.88,156.8,15.3]
[1727366612605,3.1873,156.85,156.82,3.1878]
[1727366612799,2.6093,156.88,156.8,15.3]
[1727366613003,15.3,156.87,156.79,3.22978952]
[1727366613204,15.3,156.87,156.77,17.7582]
[1727366613404,3.1876,156.84,156.81,3.1879]
[1727366613607,15.3,156.87,156.79,3.21448549]
[1727366613807,15.3,156.87,156.77,17.7582]
[1727366614009,15.3,156.87,156.82,3.1877]
[1727366614010,3.1873,156.85,156.82,3.1877]
[1727366614406,3.1872,156.85,156.82,3.1877]
[1727366614605,5.83016217,156.88,156.79,18.45231283]
[1727366615105,3.1872,156.86,156.83,3.1875]
[1727366615312,2.6093,156.88,156.83,3.1875]
[1727366616212,2.6093,156.88,156.79,18.45231283]
[1727366616512,15.3,156.87,156.79,3.15231283]
[1727366616713,3.1874,156.84,156.81,3.1879]
[1727366617504,3.1877,156.83,156.81,3.1879]
[1727366617717,15.3,156.87,156.82,3.1878]
[1727366618215,17.9093,156.88,156.8,15.3]
[1727366618608,3.187,156.86,156.8,15.3]
[1727366618813,3.187,156.86,156.8,18.51767383]
[1727366619117,17.9093,156.88,156.8,15.3]
[1727366619309,17.9093,156.88,156.8,18.47080521]
[1727366619814,3.1871,156.86,156.83,3.1875]
[1727366620114,3.1871,156.86,156.8,18.47080521]
[1727366620312,3.1871,156.86,156.83,3.1875]
[1727366620711,3.1874,156.85,156.8,15.3]
[1727366621015,15.3,156.85,156.77,2.4582]
[1727366621218,3.1883,156.8,156.74,15.3]
[1727366621407,15.3,156.81,156.73,2.6141]
[1727366621713,15.3,156.81,156.72,2.4223]
[1727366622316,3.189,156.77,156.72,2.4223]
[1727366622518,15.3,156.79,156.73,3.1895]
[1727366623021,15.3,156.77,156.7,3.18584987]
[1727366623221,15.3,156.79,156.68,17.8623]
[1727366623423,15.3,156.79,156.7,15.3]
[1727366623721,15.3,156.79,156.71,3.16798947]
[1727366624210,2.6199,156.8,156.72,15.3]
[1727366624407,2.6199,156.8,156.73,3.19190965]
[1727366624609,3.1887,156.78,156.74,3.1893]
[1727366625014,2.6199,156.8,156.73,3.19190965]
[1727366625210,3.1886,156.79,156.75,3.1891]
[1727366625617,2.6199,156.8,156.73,3.19190965]
[1727366626113,3.1887,156.78,156.74,3.1893]
[1727366626519,15.3,156.81,156.71,18.56652798]
[1727366627016,15.3,156.81,156.75,3.1891]
[1727366627215,15.3,156.81,156.71,18.56652798]
[1727366627420,3.1883,156.8,156.73,15.3]
[1727366627623,2.6814,156.87,156.73,15.3]
[1727366627817,15.3,156.82,156.74,3.18805475]
[1727366628116,15.3,156.82,156.73,15.3]
[1727366628117,3.1883,156.8,156.73,15.3]
[1727366628623,3.1883,156.8,156.75,3.1891]
[1727366628624,3.1885,156.79,156.75,3.1891]
[1727366628817,15.3,156.8,156.73,3.1424746]
[1727366629021,15.3,156.83,156.73,15.3]
[1727366629224,15.3,156.83,156.74,2.5148]
[1727366629516,15.3,156.85,156.78,3.1885]
[1727366629718,2.6814,156.87,156.79,15.3]
[1727366630417,15.3,156.86,156.77,15.3]
[1727366630814,15.3,156.86,156.79,3.1883]
[1727366631119,15.3,156.86,156.77,15.3]
[1727366631418,15.3,156.86,156.81,3.188]
[1727366632212,15.3,156.86,156.82,3.1878]
[1727366632417,2.6814,156.87,156.82,3.1878]
[1727366632715,2.6814,156.87,156.83,3.1874]
[1727366633022,17.7859,156.9,156.81,15.3]
[1727366633217,3.1869,156.87,156.81,15.3]
[1727366633531,3.1869,156.87,156.83,3.1875]
[1727366634822,3.1871,156.86,156.82,3.1878]
[1727366635225,15.3,156.88,156.79,15.3]
[1727366635419,3.1868,156.87,156.79,15.3]
[1727366636011,3.1868,156.87,156.83,3.1875]
[1727366636211,3.187,156.86,156.83,3.1875]
[1727366636823,3.187,156.86,156.82,3.1878]
[1727366637522,17.7859,156.9,156.81,3.23489087]
[1727366637822,17.7859,156.9,156.79,15.3]
[1727366638217,3.187,156.86,156.82,3.1878]
[1727366638427,17.7859,156.9,156.82,3.1878]
[1727366639424,17.7859,156.9,156.83,3.1876]
[1727366639624,3.1872,156.86,156.83,3.1876]
[1727366640423,3.1872,156.85,156.83,3.1876]
[1727366640622,15.3,156.86,156.75,5.0612]
[1727366640823,15.3,156.86,156.76,15.3]
[1727366641025,3.1876,156.84,156.77,15.3]
[1727366641326,2.4547,156.95,156.83,15.3]
[1727366641521,2.5246,156.94,156.86,15.3]
[1727366641721,0.97968118,156.93,156.88,3.1865]
[1727366642133,2.5246,156.94,156.86,15.3]
[1727366642320,0.97967909,156.93,156.86,15.3]
[1727366642629,9.549,157.06,156.9,15.3]
[1727366642818,9.549,157.06,156.88,15.3]
[1727366642819,15.3,156.96,156.88,15.3]
[1727366643020,0.97961426,156.95,156.88,15.3]
[1727366643222,3.1855,156.94,156.91,3.186]
[1727366643420,15.3,157.0,156.92,15.3]
[1727366643818,0.97960485,156.99,156.9,15.3]
[1727366644022,0.97961154,156.98,156.9,15.3]
[1727366644229,3.1852,156.96,156.92,3.1857]
[1727366644427,0.97961945,156.95,156.92,3.1857]
[1727366644629,3.1852,156.96,156.92,3.1857]
[1727366645331,15.3,156.98,156.9,15.3]
[1727366645531,15.3,156.96,156.88,15.3]
[1727366645731,15.3,156.96,156.88,3.1866]
[1727366645732,3.186,156.92,156.88,3.1866]
[1727366645934,15.3,156.94,156.86,15.3]
[1727366646232,2.5814,156.95,156.88,15.3]
[1727366646433,15.3,156.98,156.88,15.3]
[1727366646734,0.97963656,156.97,156.9,15.3]
[1727366646933,0.97963656,156.97,156.84,7.7141]
[1727366647134,0.97963656,156.97,156.88,15.3]
[1727366647436,0.97963656,156.97,156.86,15.3]
[1727366647437,15.3,156.96,156.86,15.3]
[1727366648034,15.3,156.96,156.87,3.1868]
[1727366648236,15.3,156.94,156.87,3.1868]
[1727366648534,3.1862,156.9,156.87,3.1868]
[1727366648735,15.3,156.92,156.84,20.3805]
[1727366648938,15.3,156.92,156.84,23.55638028]
[1727366649135,2.6064,156.93,156.86,15.3]
[1727366649529,3.1862,156.91,156.86,15.3]
[1727366649733,2.6064,156.93,156.88,3.1866]
[1727366650032,3.186,156.91,156.88,3.1866]
[1727366650237,2.6064,156.93,156.86,15.3]
[1727366650536,3.1863,156.9,156.86,15.3]
[1727366650731,2.6064,156.93,156.84,8.25638028]
[1727366650935,15.3,156.92,156.84,20.3805]
[1727366651134,15.3,156.91,156.82,15.3]
[1727366651334,17.9064,156.93,156.84,15.3]
[1727366651539,17.9064,156.93,156.86,15.3]
[1727366651540,2.6064,156.93,156.86,15.3]
[1727366651740,3.186,156.91,156.87,3.1868]
[1727366652039,2.6064,156.93,156.87,3.1868]
[1727366652234,2.6064,156.93,156.86,15.3]
[1727366652434,2.6064,156.93,156.85,15.3]
[1727366652941,3.1865,156.89,156.86,3.187]
[1727366653429,3.1869,156.87,156.84,3.1874]
[1727366653833,15.3,156.92,156.83,15.3]
[1727366654035,3.1863,156.9,156.87,3.1867]
[1727366654240,2.6064,156.93,156.85,15.3]
[1727366654630,2.6064,156.93,156.83,18.5401221]
[1727366654832,15.3,156.92,156.83,15.3]
[1727366655035,15.3,156.92,156.82,3.14449626]
[1727366655341,15.3,156.92,156.81,18.5624348]
[1727366655739,3.1868,156.88,156.84,3.1873]
[1727366655938,15.3,156.92,156.81,18.5624348]
[1727366656339,15.3,156.9,156.81,15.3]
[1727366656537,15.3,156.88,156.79,5.1649]
[1727366656842,15.3,156.86,156.8,3.1882]
[1727366657237,15.3,156.88,156.78,15.3]
[1727366658044,15.3,156.86,156.78,15.3]
[1727366658437,15.3,156.84,156.76,15.3]
[1727366658946,3.1881,156.81,156.78,3.1886]
[1727366659448,3.1886,156.79,156.76,18.4889]
[1727366659636,15.3,156.84,156.76,15.3]
[1727366661140,3.1881,156.81,156.78,3.1885]
[1727366661448,2.5032,156.85,156.76,15.3]
[1727366661847,3.188,156.82,156.79,3.1883]
[1727366662049,3.188,156.82,156.76,15.3]
[1727366662050,2.5032,156.85,156.76,15.3]
[1727366663151,3.1882,156.81,156.78,3.1885]
[1727366663444,3.1882,156.81,156.76,15.3]
[1727366663445,2.5032,156.85,156.76,15.3]
[1727366663854,3.188,156.82,156.76,15.3]
[1727366664046,2.5032,156.85,156.76,15.3]
[1727366664350,17.8032,156.85,156.78,3.1886]
[1727366665053,3.1882,156.8,156.77,3.1888]
[1727366665754,3.1881,156.81,156.78,3.1886]
[1727366665949,2.5032,156.85,156.78,15.3]
[1727366666652,3.1879,156.82,156.79,3.1884]
[1727366666851,17.8032,156.85,156.76,15.3]
[1727366667248,15.3,156.83,156.74,22.9864]
[1727366668146,15.3,156.83,156.76,3.189]
[1727366668645,3.1884,156.8,156.76,3.189]
[1727366668848,15.3,156.83,156.76,3.189]
[1727366669248,3.1885,156.79,156.76,3.189]
[1727366670055,3.1883,156.8,156.76,3.189]
[1727366670251,3.1883,156.8,156.77,3.1888]
[1727366674148,3.1885,156.79,156.76,3.189]
[1727366674346,15.3,156.79,156.74,2.6692]
[1727366674545,15.3,156.79,156.72,3.25346427]
[1727366674755,3.1887,156.78,156.7,15.3]
[1727366675152,15.3,156.79,156.7,15.3]
[1727366675353,15.3,156.79,156.7,18.45204268]
[1727366675749,15.3,156.82,156.71,15.3]
[1727366676058,15.3,156.82,156.74,15.3]
[1727366676256,15.3,156.82,156.76,3.189]
[1727366676455,15.3,156.82,156.74,15.3]
[1727366676655,3.1887,156.78,156.75,3.1891]
[1727366677259,15.3,156.84,156.75,3.15861985]
[1727366677558,15.3,156.84,156.76,15.3]
[1727366678058,15.3,156.84,156.75,3.15861985]
[1727366678059,2.5032,156.85,156.77,15.3]
[1727366678246,5.1836,156.87,156.79,15.3]
[1727366678446,3.1872,156.86,156.82,3.1877]
[1727366678652,15.3,156.88,156.79,15.3]
[1727366679055,3.1872,156.86,156.79,15.3]
[1727366679356,15.3,156.88,156.79,15.3]
[1727366679760,7.5189,156.92,156.84,15.3]
[1727366680661,7.5189,156.92,156.83,3.25606663]
[1727366680865,7.5189,156.92,156.8,15.3]
[1727366680866,15.3,156.96,156.87,15.3]
[1727366681056,0.97966792,156.95,156.87,15.3]
[1727366681460,0.97966792,156.95,156.9,15.3]
[1727366681663,0.97966792,156.94,156.9,15.3]
[1727366681959,2.484,156.97,156.9,15.3]
[1727366682264,0.97964836,156.96,156.9,15.3]
[1727366682568,0.97964836,156.96,156.88,15.3]
[1727366683260,15.3,156.95,156.87,5.1579]
[1727366683461,0.97964836,156.94,156.87,5.1579]
[1727366683663,3.1858,156.92,156.87,8.3446]
[1727366684063,3.1858,156.92,156.87,5.1579]
[1727366684759,3.1858,156.92,156.89,3.1864]
[1727366685159,15.3,156.95,156.89,3.1864]
[1727366685458,0.97966997,156.94,156.89,3.1864]
[1727366685965,17.784,156.97,156.88,15.3]
[1727366686164,0.97966568,156.96,156.88,15.3]
[1727366686862,0.97966568,156.96,156.9,15.3]
[1727366687063,15.3,157.01,156.92,15.3]